[Event "TOP 12F 2021"]
[Site "RENNES, France"]
[Date "2021.08.28"]
[Round "4.1"]
[White "Gaponenko, Inna"]
[Black "Paehtz, Elisabeth"]
[Result "1/2-1/2"]
[TimeControl "1H30 + 30 sec/coup"]
[WhiteElo "2357"]
[BlackElo "2466"]

1. e4 {[%clk 01:30:57]} {[%emt 00:00:02]} c5 {[%clk 01:30:54]} {[%emt
00:00:07]} 2. c3 {[%clk 01:31:20]} {[%emt 00:00:06]} Nf6 {[%clk 01:31:20]}
{[%emt 00:00:04]} 3. e5 {[%clk 01:31:24]} {[%emt 00:00:26]} Nd5 {[%clk
01:31:45]} {[%emt 00:00:04]} 4. Nf3 {[%clk 01:31:42]} {[%emt 00:00:12]} Nc6
{[%clk 01:32:10]} {[%emt 00:00:06]} 5. d4 {[%clk 01:32:03]} {[%emt 00:00:09]}
cxd4 {[%clk 01:32:35]} {[%emt 00:00:05]} 6. cxd4 {[%clk 01:32:30]} {[%emt
00:00:03]} d6 {[%clk 01:33:00]} {[%emt 00:00:05]} 7. Bc4 {[%clk 01:32:49]}
{[%emt 00:00:11]} dxe5 {[%clk 01:33:14]} {[%emt 00:00:16]} 8. dxe5 {[%clk
01:28:49]} {[%emt 00:04:30]} Ndb4 {[%clk 01:32:43]} {[%emt 00:01:01]} 9. O-O
{[%clk 01:26:40]} {[%emt 00:02:39]} Qxd1 {[%clk 01:24:05]} {[%emt 00:09:08]} 10.
Rxd1 {[%clk 01:26:03]} {[%emt 00:01:08]} Bg4 {[%clk 01:24:19]} {[%emt
00:00:15]} 11. Nc3 {[%clk 01:26:02]} {[%emt 00:00:30]} Nc2 {[%clk 01:15:51]}
{[%emt 00:08:58]} 12. Rb1 {[%clk 01:19:21]} {[%emt 00:07:12]} e6 {[%clk
01:15:07]} {[%emt 00:01:14]} 13. Nb5 {[%clk 00:37:04]} {[%emt 00:42:46]} Rc8
{[%clk 01:15:30]} {[%emt 00:00:07]} 14. Bb3 {[%clk 00:37:31]} {[%emt 00:00:04]}
Bxf3 {[%clk 01:11:44]} {[%emt 00:04:16]} 15. gxf3 {[%clk 00:37:53]} {[%emt
00:00:08]} a6 {[%clk 00:51:09]} {[%emt 00:21:04]} 16. Bxc2 {[%clk 00:29:48]}
{[%emt 00:08:35]} axb5 {[%clk 00:51:34]} {[%emt 00:00:06]} 17. Bd3 {[%clk
00:30:01]} {[%emt 00:00:17]} b4 {[%clk 00:50:47]} {[%emt 00:01:16]} 18. Bb5
{[%clk 00:15:18]} {[%emt 00:15:13]} Bc5 {[%clk 00:47:56]} {[%emt 00:03:20]} 19.
Be3 {[%clk 00:15:07]} {[%emt 00:00:42]} Bxe3 {[%clk 00:48:19]} {[%emt
00:00:07]} 20. fxe3 {[%clk 00:15:36]} {[%emt 00:00:01]} Ke7 {[%clk 00:48:38]}
{[%emt 00:00:12]} 21. Bxc6 {[%clk 00:06:56]} {[%emt 00:09:10]} bxc6 {[%clk
00:42:39]} {[%emt 00:06:29]} 22. a3 {[%emt 00:00:08]} bxa3 {[%clk 00:37:53]}
{[%emt 00:05:12]} 1/2-1/2

[Event "TOP 12F 2021"]
[Site "RENNES, France"]
[Date "2021.08.28"]
[Round "4.2"]
[White "Skripchenko, Almira"]
[Black "Guichard, Pauline"]
[Result "0-1"]
[TimeControl "1H30 + 30 sec/coup"]
[WhiteElo "2411"]
[BlackElo "2414"]

1. e4 {[%clk 01:28:21]} {[%emt 00:02:38]} e5 {[%clk 01:30:51]} {[%emt
00:00:09]} 2. Nf3 {[%clk 01:28:14]} {[%emt 00:00:37]} Nc6 {[%clk 01:30:58]}
{[%emt 00:00:24]} 3. Nc3 {[%clk 01:28:31]} {[%emt 00:00:13]} Nf6 {[%clk
01:31:13]} {[%emt 00:00:14]} 4. d4 {[%clk 01:28:14]} {[%emt 00:00:47]} exd4
{[%clk 01:31:21]} {[%emt 00:00:23]} 5. Nxd4 {[%clk 01:28:38]} {[%emt 00:00:06]}
Bb4 {[%clk 01:31:42]} {[%emt 00:00:08]} 6. Nxc6 {[%clk 01:28:51]} {[%emt
00:00:17]} bxc6 {[%clk 01:32:03]} {[%emt 00:00:09]} 7. Bd3 {[%clk 01:29:15]}
{[%emt 00:00:05]} d5 {[%clk 01:32:20]} {[%emt 00:00:14]} 8. exd5 {[%clk
01:29:09]} {[%emt 00:00:36]} O-O {[%clk 01:32:35]} {[%emt 00:00:14]} 9. O-O
{[%clk 01:29:22]} {[%emt 00:00:17]} Bg4 {[%clk 01:32:48]} {[%emt 00:00:17]} 10.
Be2 {[%clk 01:12:44]} {[%emt 00:17:08]} Bxe2 {[%clk 01:32:25]} {[%emt
00:00:53]} 11. Nxe2 {[%clk 01:08:27]} {[%emt 00:04:48]} cxd5 {[%clk 01:32:43]}
{[%emt 00:00:11]} 12. Nf4 {[%clk 01:03:55]} {[%emt 00:05:02]} Bd6 {[%clk
01:24:19]} {[%emt 00:08:55]} 13. g3 {[%clk 01:01:55]} {[%emt 00:02:30]} c6
{[%clk 01:21:13]} {[%emt 00:03:36]} 14. c4 {[%clk 00:55:33]} {[%emt 00:06:51]}
Re8 {[%clk 01:02:34]} {[%emt 00:19:09]} 15. Qf3 {[%clk 00:30:44]} {[%emt
00:25:19]} dxc4 {[%clk 00:49:09]} {[%emt 00:13:55]} 16. Rd1 {[%clk 00:30:30]}
{[%emt 00:00:43]} Qe7 {[%clk 00:44:21]} {[%emt 00:05:18]} 17. Be3 {[%clk
00:23:35]} {[%emt 00:07:25]} Be5 {[%clk 00:37:16]} {[%emt 00:07:35]} 18. Rac1
{[%clk 00:19:38]} {[%emt 00:04:26]} Rab8 {[%clk 00:25:48]} {[%emt 00:11:58]} 19.
Rxc4 {[%clk 00:18:27]} {[%emt 00:01:42]} Rxb2 {[%clk 00:26:05]} {[%emt
00:00:13]} 20. a4 {[%clk 00:17:06]} {[%emt 00:01:50]} h6 {[%clk 00:16:00]}
{[%emt 00:10:35]} 21. Nd3 {[%clk 00:13:01]} {[%emt 00:04:35]} Rb3 {[%clk
00:13:03]} {[%emt 00:03:27]} 22. Nxe5 {[%clk 00:12:21]} {[%emt 00:01:10]} Qxe5
{[%clk 00:13:29]} {[%emt 00:00:04]} 23. Rxc6 {[%clk 00:12:39]} {[%emt
00:00:13]} Ne4 {[%clk 00:12:30]} {[%emt 00:01:29]} 24. Rd7 {[%clk 00:10:59]}
{[%emt 00:02:10]} Ng5 {[%clk 00:11:17]} {[%emt 00:01:43]} 25. Qg4 {[%clk
00:07:03]} {[%emt 00:04:25]} Rxe3 {[%clk 00:08:22]} {[%emt 00:03:25]} 26. fxe3
{[%clk 00:07:08]} {[%emt 00:00:25]} Qxe3+ {[%clk 00:08:48]} {[%emt 00:00:04]}
27. Kg2 {[%clk 00:07:29]} {[%emt 00:00:09]} h5 {[%clk 00:08:56]} {[%emt
00:00:22]} 28. Qf3 {[%emt 00:07:18]} 0-1

[Event "TOP 12F 2021"]
[Site "RENNES, France"]
[Date "2021.08.28"]
[Round "4.3"]
[White "Leconte, Maria"]
[Black "Broly, Mathilde"]
[Result "1-0"]
[TimeControl "1H30 + 30 sec/coup"]
[WhiteElo "2232"]
[BlackElo "2154"]

1. e4 {[%clk 01:29:06]} {[%emt 00:01:53]} e5 {[%clk 01:30:18]} {[%emt
00:00:43]} 2. Nf3 {[%clk 01:29:22]} {[%emt 00:00:14]} Nc6 {[%clk 01:30:38]}
{[%emt 00:00:10]} 3. Nc3 {[%clk 01:29:45]} {[%emt 00:00:07]} Nf6 {[%clk
01:30:17]} {[%emt 00:00:50]} 4. Bb5 {[%clk 01:30:05]} {[%emt 00:00:11]} Bd6
{[%clk 01:27:07]} {[%emt 00:03:39]} 5. d3 {[%clk 01:30:10]} {[%emt 00:00:26]}
h6 {[%clk 01:25:30]} {[%emt 00:02:06]} 6. a3 {[%clk 01:29:47]} {[%emt
00:00:54]} O-O {[%clk 01:21:17]} {[%emt 00:04:43]} 7. g4 {[%clk 01:13:54]}
{[%emt 00:16:23]} Nd4 {[%clk 01:11:38]} {[%emt 00:10:08]} 8. Bc4 {[%clk
01:01:38]} {[%emt 00:12:46]} Nxg4 {[%clk 00:59:26]} {[%emt 00:12:41]} 9. Rg1
{[%clk 00:53:54]} {[%emt 00:08:15]} Qf6 {[%clk 00:57:59]} {[%emt 00:01:57]} 10.
Rxg4 {[%clk 00:43:49]} {[%emt 00:10:34]} Nxf3+ {[%clk 00:47:12]} {[%emt
00:11:17]} 11. Ke2 {[%clk 00:44:08]} {[%emt 00:00:11]} c6 {[%clk 00:44:57]}
{[%emt 00:02:44]} 12. Rg3 {[%clk 00:33:14]} {[%emt 00:11:24]} Nd4+ {[%clk
00:35:25]} {[%emt 00:10:02]} 13. Kf1 {[%clk 00:33:39]} {[%emt 00:00:06]} Ne6
{[%clk 00:34:03]} {[%emt 00:01:51]} 14. Qh5 {[%clk 00:33:29]} {[%emt 00:00:40]}
Kh7 {[%clk 00:33:04]} {[%emt 00:01:29]} 15. Bxe6 {[%clk 00:25:41]} {[%emt
00:08:19]} Qxe6 {[%clk 00:28:20]} {[%emt 00:05:13]} 16. Be3 {[%clk 00:25:26]}
{[%emt 00:00:45]} f5 {[%clk 00:17:21]} {[%emt 00:11:29]} 17. exf5 {[%clk
00:25:50]} {[%emt 00:00:07]} Rxf5 {[%clk 00:17:40]} {[%emt 00:00:10]} 18. Qg4
{[%clk 00:24:45]} {[%emt 00:01:35]} Rf7 {[%clk 00:14:09]} {[%emt 00:04:00]} 19.
Qxe6 {[%clk 00:24:48]} {[%emt 00:00:28]} dxe6 {[%clk 00:14:32]} {[%emt
00:00:07]} 20. Ne4 {[%clk 00:25:07]} {[%emt 00:00:11]} Be7 {[%clk 00:14:22]}
{[%emt 00:00:40]} 21. Ke2 {[%clk 00:19:17]} {[%emt 00:06:20]} b6 {[%clk
00:08:06]} {[%emt 00:06:45]} 22. a4 {[%clk 00:19:33]} {[%emt 00:00:15]} Bb7
{[%clk 00:06:17]} {[%emt 00:02:19]} 23. a5 {[%clk 00:19:46]} {[%emt 00:00:18]}
c5 {[%clk 00:06:13]} {[%emt 00:00:34]} 24. Nd2 {[%clk 00:18:35]} {[%emt
00:01:41]} b5 {[%clk 00:03:37]} {[%emt 00:03:06]} 25. a6 {[%clk 00:17:20]}
{[%emt 00:01:46]} Bc6 {[%clk 00:03:32]} {[%emt 00:00:34]} 26. Ne4 {[%clk
00:16:39]} {[%emt 00:01:12]} Bxe4 {[%clk 00:02:22]} {[%emt 00:01:40]} 27. dxe4
{[%clk 00:17:05]} {[%emt 00:00:05]} Bf8 {[%clk 00:02:08]} {[%emt 00:00:44]} 28.
Ra5 {[%clk 00:15:13]} {[%emt 00:02:22]} Rb8 {[%clk 00:02:25]} {[%emt 00:00:12]}
29. Bd2 {[%clk 00:14:54]} {[%emt 00:00:49]} b4 {[%clk 00:01:40]} {[%emt
00:01:15]} 30. Be3 {[%clk 00:13:54]} {[%emt 00:01:31]} Rc7 {[%clk 00:01:21]}
{[%emt 00:00:49]} 31. b3 {[%clk 00:12:03]} {[%emt 00:02:21]} Rc6 {[%clk
00:00:42]} {[%emt 00:01:08]} 32. Rg1 {[%clk 00:10:54]} {[%emt 00:01:39]} Rbb6
{[%clk 00:00:53]} {[%emt 00:00:20]} 33. Rga1 {[%clk 00:10:27]} {[%emt
00:00:58]} Kg6 {[%clk 00:00:37]} {[%emt 00:00:46]} 34. Kd3 {[%clk 00:09:17]}
{[%emt 00:01:40]} Kh5 {[%clk 00:00:44]} {[%emt 00:00:23]} 35. Kc4 {[%clk
00:08:52]} {[%emt 00:00:56]} g5 {[%clk 00:00:38]} {[%emt 00:00:35]} 36. f3
{[%clk 00:07:56]} {[%emt 00:01:27]} Be7 {[%clk 00:00:43]} {[%emt 00:00:24]} 37.
R1a4 {[%clk 00:06:07]} {[%emt 00:02:19]} Kh4 {[%clk 00:00:55]} {[%emt
00:00:18]} 38. Bf2 {[%clk 00:06:04]} {[%emt 00:00:33]} Kh3 {[%clk 00:01:17]}
{[%emt 00:00:08]} 39. Kd3 {[%clk 00:03:45]} {[%emt 00:02:50]} Kxh2 {[%clk
00:01:38]} {[%emt 00:00:09]} 40. Ra1 {[%clk 00:03:53]} {[%emt 00:00:22]} h5
{[%clk 00:01:39]} {[%emt 00:00:29]} 41. R5a2 {[%clk 00:03:24]} {[%emt
00:01:00]} Kh3 {[%clk 00:01:44]} {[%emt 00:00:25]} 42. Ke2 {[%clk 00:03:07]}
{[%emt 00:00:48]} g4 {[%clk 00:01:12]} {[%emt 00:01:01]} 43. Rh1+ {[%clk
00:03:07]} {[%emt 00:00:30]} Kg2 {[%clk 00:01:36]} {[%emt 00:00:06]} 44. Rg1
{[%clk 00:03:15]} {[%emt 00:00:22]} Kh3 {[%clk 00:00:44]} {[%emt 00:01:22]} 45.
Raa1 {[%clk 00:03:21]} {[%emt 00:00:24]} 1-0

[Event "TOP 12F 2021"]
[Site "RENNES, France"]
[Date "2021.08.28"]
[Round "4.4"]
[White "Nicoara, Malina"]
[Black "Dornbusch, Tatiana"]
[Result "1/2-1/2"]
[TimeControl "1H30 + 30 sec/coup"]
[WhiteElo "2066"]
[BlackElo "2249"]

1. d4 {[%clk 01:29:06]} {[%emt 00:01:53]} Nf6 {[%clk 01:30:26]} {[%emt
00:00:35]} 2. c4 {[%clk 01:29:28]} {[%emt 00:00:07]} g6 {[%clk 01:29:59]}
{[%emt 00:00:58]} 3. Nc3 {[%clk 01:29:51]} {[%emt 00:00:06]} Bg7 {[%clk
01:30:20]} {[%emt 00:00:09]} 4. e4 {[%clk 01:30:10]} {[%emt 00:00:11]} d6
{[%clk 01:30:42]} {[%emt 00:00:08]} 5. f3 {[%clk 01:30:21]} {[%emt 00:00:19]}
O-O {[%clk 01:30:35]} {[%emt 00:00:38]} 6. Be3 {[%clk 01:30:43]} {[%emt
00:00:07]} e5 {[%clk 01:30:19]} {[%emt 00:00:45]} 7. Nge2 {[%clk 01:26:38]}
{[%emt 00:04:36]} exd4 {[%clk 01:22:34]} {[%emt 00:08:15]} 8. Nxd4 {[%clk
01:26:57]} {[%emt 00:00:11]} Nc6 {[%clk 01:17:20]} {[%emt 00:05:45]} 9. Qd2
{[%clk 01:09:14]} {[%emt 00:18:12]} Bd7 {[%clk 01:11:08]} {[%emt 00:06:42]} 10.
Be2 {[%clk 01:00:46]} {[%emt 00:08:58]} a6 {[%clk 00:56:44]} {[%emt 00:14:54]}
11. O-O {[%clk 00:59:17]} {[%emt 00:01:59]} Nh5 {[%clk 00:51:53]} {[%emt
00:05:21]} 12. f4 {[%clk 00:50:45]} {[%emt 00:09:02]} Nf6 {[%clk 00:49:07]}
{[%emt 00:03:15]} 13. h3 {[%clk 00:36:06]} {[%emt 00:15:09]} Re8 {[%clk
00:46:54]} {[%emt 00:02:43]} 14. Bf3 {[%clk 00:36:12]} {[%emt 00:00:25]} Nxd4
{[%clk 00:42:32]} {[%emt 00:04:52]} 15. Bxd4 {[%clk 00:35:05]} {[%emt
00:01:36]} Bc6 {[%clk 00:39:55]} {[%emt 00:03:08]} 16. Rae1 {[%clk 00:34:43]}
{[%emt 00:00:52]} Nd7 {[%clk 00:34:03]} {[%emt 00:06:21]} 17. Bxg7 {[%clk
00:23:19]} {[%emt 00:11:55]} Kxg7 {[%clk 00:34:29]} {[%emt 00:00:05]} 18. Bd1
{[%clk 00:19:42]} {[%emt 00:04:07]} Qf6 {[%clk 00:30:37]} {[%emt 00:04:21]} 19.
b4 {[%clk 00:17:42]} {[%emt 00:02:30]} b6 {[%clk 00:17:01]} {[%emt 00:14:07]}
20. e5 {[%clk 00:09:40]} {[%emt 00:08:32]} Qe7 {[%clk 00:14:03]} {[%emt
00:03:27]} 21. exd6 {[%emt 00:03:56]} Qxd6 {[%clk 00:14:22]} {[%emt 00:00:10]}
22. Qxd6 {[%clk 00:06:42]} {[%emt 00:00:03]} cxd6 {[%clk 00:14:45]} {[%emt
00:00:07]} 23. Bb3 {[%clk 00:06:16]} {[%emt 00:00:56]} Rxe1 {[%clk 00:13:13]}
{[%emt 00:02:02]} 24. Rxe1 {[%clk 00:06:42]} {[%emt 00:00:04]} Kf8 {[%clk
00:11:57]} {[%emt 00:01:46]} 25. Rd1 {[%clk 00:06:40]} {[%emt 00:00:32]} Ke7
{[%clk 00:12:01]} {[%emt 00:00:26]} 26. Re1+ {[%clk 00:04:49]} {[%emt
00:02:21]} Kf8 {[%clk 00:08:00]} {[%emt 00:04:30]} 27. Rd1 {[%clk 00:05:13]}
{[%emt 00:00:06]} Ke7 {[%clk 00:08:08]} {[%emt 00:00:22]} 28. Re1+ {[%clk
00:05:39]} {[%emt 00:00:04]} Kf8 {[%clk 00:02:48]} 1/2-1/2

[Event "TOP 12F 2021"]
[Site "RENNES, France"]
[Date "2021.08.28"]
[Round "4.6"]
[White "Haussernot, Cecile"]
[Black "Javakhishvili, Lela"]
[Result "0-1"]
[TimeControl "1H30 + 30 sec/coup"]
[WhiteElo "2171"]
[BlackElo "2470"]

1. e4 {[%clk 01:24:40]} {[%emt 00:06:08]} c5 {[%clk 01:30:51]} {[%emt
00:00:10]} 2. Nf3 {[%clk 01:24:48]} {[%emt 00:00:22]} e6 {[%clk 01:31:07]}
{[%emt 00:00:13]} 3. c3 {[%clk 01:24:47]} {[%emt 00:00:31]} Nf6 {[%clk
01:25:36]} {[%emt 00:06:01]} 4. e5 {[%clk 01:24:45]} {[%emt 00:00:32]} Nd5
{[%clk 01:25:59]} {[%emt 00:00:06]} 5. d4 {[%clk 01:25:06]} {[%emt 00:00:10]}
cxd4 {[%clk 01:23:39]} {[%emt 00:02:49]} 6. cxd4 {[%clk 01:25:10]} {[%emt
00:00:26]} Qc7 {[%clk 01:23:44]} {[%emt 00:00:25]} 7. a3 {[%clk 01:22:51]}
{[%emt 00:02:50]} d6 {[%clk 01:16:10]} {[%emt 00:08:04]} 8. Bd3 {[%clk
01:21:17]} {[%emt 00:02:03]} Nd7 {[%clk 01:16:24]} {[%emt 00:00:16]} 9. O-O
{[%clk 01:16:49]} {[%emt 00:04:58]} dxe5 {[%clk 01:13:58]} {[%emt 00:02:56]} 10.
dxe5 {[%clk 01:11:53]} {[%emt 00:05:25]} Nc5 {[%clk 01:13:56]} {[%emt
00:00:32]} 11. Bc2 {[%clk 01:10:55]} {[%emt 00:01:29]} a5 {[%clk 01:12:55]}
{[%emt 00:01:31]} 12. Bd2 {[%clk 00:54:27]} {[%emt 00:16:57]} b6 {[%clk
01:03:11]} {[%emt 00:10:13]} 13. Nc3 {[%clk 00:49:35]} {[%emt 00:05:22]} Nxc3
{[%clk 01:03:25]} {[%emt 00:00:16]} 14. Bxc3 {[%clk 00:49:40]} {[%emt
00:00:25]} a4 {[%clk 00:42:08]} {[%emt 00:21:47]} 15. Nd4 {[%clk 00:39:58]}
{[%emt 00:10:12]} Bb7 {[%clk 00:38:03]} {[%emt 00:04:35]} 16. Qe2 {[%clk
00:33:41]} {[%emt 00:06:47]} Be7 {[%clk 00:34:37]} {[%emt 00:03:56]} 17. Rfe1
{[%clk 00:28:16]} {[%emt 00:05:55]} g6 {[%clk 00:30:10]} {[%emt 00:04:57]} 18.
f4 {[%clk 00:19:43]} {[%emt 00:09:02]} O-O {[%clk 00:30:03]} {[%emt 00:00:37]}
19. Qg4 {[%clk 00:11:43]} {[%emt 00:08:31]} Rfd8 {[%clk 00:22:02]} {[%emt
00:08:31]} 20. f5 {[%clk 00:10:12]} {[%emt 00:02:01]} Rxd4 {[%clk 00:22:25]}
{[%emt 00:00:07]} 21. Bxd4 {[%clk 00:09:52]} {[%emt 00:00:50]} exf5 {[%clk
00:22:36]} {[%emt 00:00:19]} 22. Bxf5 {[%clk 00:08:14]} {[%emt 00:02:08]} Nb3
{[%clk 00:20:40]} {[%emt 00:02:26]} 23. e6 {[%clk 00:08:19]} {[%emt 00:00:25]}
Nxd4 {[%clk 00:20:28]} {[%emt 00:00:41]} 24. exf7+ {[%clk 00:08:32]} {[%emt
00:00:17]} Kf8 {[%clk 00:12:12]} {[%emt 00:08:46]} 25. Bxg6 {[%clk 00:08:33]}
{[%emt 00:00:29]} Nf3+ {[%clk 00:08:20]} {[%emt 00:04:22]} 26. gxf3 {[%clk
00:08:12]} {[%emt 00:00:52]} hxg6 {[%clk 00:08:28]} {[%emt 00:00:22]} 27. Qxg6
{[%clk 00:05:08]} {[%emt 00:03:35]} Bc5+ {[%clk 00:08:12]} {[%emt 00:00:46]} 28.
Kf1 {[%clk 00:03:53]} {[%emt 00:01:44]} Qxf7 {[%clk 00:06:19]} {[%emt
00:02:22]} 29. Qh6+ {[%clk 00:04:18]} {[%emt 00:00:06]} Kg8 {[%clk 00:06:07]}
{[%emt 00:00:42]} 30. Qg5+ {[%clk 00:00:34]} {[%emt 00:04:15]} Qg7 {[%clk
00:06:27]} {[%emt 00:00:08]} 31. Qxg7+ {[%clk 00:00:39]} {[%emt 00:00:25]} Kxg7
{[%clk 00:06:55]} {[%emt 00:00:02]} 32. Kg2 {[%clk 00:00:37]} {[%emt 00:00:32]}
Kf6 {[%clk 00:05:38]} {[%emt 00:01:47]} 33. Rf1 {[%clk 00:00:39]} {[%emt
00:00:29]} Rg8+ {[%clk 00:05:55]} {[%emt 00:00:13]} 34. Kh1 {[%clk 00:01:02]}
{[%emt 00:00:06]} Rd8 {[%clk 00:05:00]} {[%emt 00:01:24]} 35. Rac1 {[%clk
00:01:09]} {[%emt 00:00:24]} Rd3 {[%clk 00:03:37]} {[%emt 00:01:53]} 36. Rc3
{[%clk 00:00:31]} {[%emt 00:01:08]} Rxc3 {[%clk 00:03:47]} {[%emt 00:00:20]} 37.
bxc3 {[%clk 00:01:00]} {[%emt 00:00:01]} Bxa3 {[%clk 00:04:09]} {[%emt
00:00:07]} 38. Ra1 {[%clk 00:01:27]} {[%emt 00:00:03]} Bxf3+ {[%clk 00:03:35]}
{[%emt 00:01:04]} 39. Kg1 {[%clk 00:01:56]} Bc5+ {[%clk 00:03:59]} {[%emt
00:00:06]} 40. Kf1 {[%clk 00:02:24]} {[%emt 00:00:03]} a3 {[%clk 00:04:14]}
{[%emt 00:00:14]} 41. Ke1 {[%clk 00:02:52]} {[%emt 00:00:02]} Bd5 {[%clk
00:03:54]} {[%emt 00:00:49]} 42. Kd2 {[%clk 00:03:17]} {[%emt 00:00:06]} a2
{[%clk 00:03:25]} {[%emt 00:00:59]} 43. Kd3 {[%clk 00:00:53]} {[%emt 00:02:54]}
b5 {[%clk 00:02:32]} {[%emt 00:01:23]} 44. Kc2 {[%clk 00:01:09]} {[%emt
00:00:14]} Ba3 {[%clk 00:01:38]} {[%emt 00:01:23]} 45. Rf1+ {[%clk 00:00:32]}
{[%emt 00:01:07]} Kg6 {[%clk 00:02:02]} {[%emt 00:00:06]} 46. Rg1+ {[%clk
00:00:34]} {[%emt 00:00:29]} Kh5 {[%clk 00:02:08]} {[%emt 00:00:23]} 47. Ra1
{[%clk 00:00:32]} {[%emt 00:00:33]} Bg8 {[%clk 00:01:53]} {[%emt 00:00:45]} 48.
h3 {[%clk 00:00:31]} {[%emt 00:00:31]} Bf7 {[%clk 00:02:08]} {[%emt 00:00:15]}
49. h4 {[%clk 00:00:35]} {[%emt 00:00:27]} Bg8 {[%clk 00:02:25]} {[%emt
00:00:12]} 0-1

[Event "TOP 12F 2021"]
[Site "RENNES, France"]
[Date "2021.08.28"]
[Round "4.7"]
[White "Navrotescu, Andreea"]
[Black "Maisuradze, Nino"]
[Result "1-0"]
[TimeControl "1H30 + 30 sec/coup"]
[WhiteElo "2249"]
[BlackElo "2245"]

1. c4 {[%clk 01:30:57]} {[%emt 00:00:01]} c5 {[%clk 01:29:51]} {[%emt
00:01:10]} 2. Nf3 {[%clk 01:31:12]} {[%emt 00:00:15]} Nf6 {[%clk 01:26:02]}
{[%emt 00:04:19]} 3. Nc3 {[%clk 01:31:15]} {[%emt 00:00:27]} g6 {[%clk
01:19:14]} {[%emt 00:07:19]} 4. e3 {[%clk 01:30:54]} {[%emt 00:00:51]} Bg7
{[%clk 01:19:23]} {[%emt 00:00:20]} 5. d4 {[%clk 01:30:07]} {[%emt 00:01:17]}
cxd4 {[%clk 01:19:49]} {[%emt 00:00:05]} 6. exd4 {[%clk 01:29:59]} {[%emt
00:00:37]} d5 {[%clk 01:19:48]} {[%emt 00:00:31]} 7. h3 {[%clk 01:09:35]}
{[%emt 00:20:53]} O-O {[%clk 01:19:23]} {[%emt 00:00:56]} 8. Be2 {[%clk
00:54:40]} {[%emt 00:15:25]} dxc4 {[%clk 01:07:53]} {[%emt 00:12:00]} 9. Bxc4
{[%clk 00:54:52]} {[%emt 00:00:17]} Nbd7 {[%clk 01:06:56]} {[%emt 00:01:28]} 10.
O-O {[%clk 00:54:37]} {[%emt 00:00:44]} Nb6 {[%clk 01:06:59]} {[%emt 00:00:27]}
11. Bb3 {[%clk 00:54:27]} {[%emt 00:00:40]} Nbd5 {[%clk 01:06:10]} {[%emt
00:01:19]} 12. Re1 {[%clk 00:52:16]} {[%emt 00:02:41]} e6 {[%clk 00:39:27]}
{[%emt 00:27:14]} 13. Bg5 {[%clk 00:47:22]} {[%emt 00:05:23]} h6 {[%clk
00:35:41]} {[%emt 00:04:17]} 14. Bh4 {[%clk 00:45:03]} {[%emt 00:02:48]} Qb6
{[%clk 00:17:49]} {[%emt 00:18:22]} 15. Ne5 {[%clk 00:37:02]} {[%emt 00:08:30]}
a5 {[%clk 00:14:12]} {[%emt 00:04:08]} 16. a4 {[%clk 00:32:56]} {[%emt
00:04:36]} Nf4 {[%clk 00:10:06]} {[%emt 00:04:35]} 17. Nb5 {[%clk 00:29:43]}
{[%emt 00:03:42]} Rd8 {[%clk 00:02:14]} {[%emt 00:08:24]} 18. Rc1 {[%clk
00:25:21]} {[%emt 00:04:52]} g5 {[%clk 00:01:14]} {[%emt 00:01:30]} 19. Bg3
{[%clk 00:19:08]} {[%emt 00:06:42]} N6h5 {[%clk 00:01:17]} {[%emt 00:00:27]} 20.
Nc4 {[%clk 00:17:42]} {[%emt 00:01:57]} Qc6 {[%clk 00:01:10]} {[%emt 00:00:37]}
21. Ne3 {[%clk 00:18:10]} {[%emt 00:00:02]} Qb6 {[%clk 00:00:43]} {[%emt
00:00:57]} 22. Nc4 {[%clk 00:07:06]} {[%emt 00:11:33]} Qc6 {[%clk 00:01:12]}
{[%emt 00:00:02]} 23. Ne3 {[%clk 00:05:39]} {[%emt 00:01:57]} Qb6 {[%clk
00:01:40]} {[%emt 00:00:02]} 24. Kh2 {[%clk 00:05:52]} {[%emt 00:00:17]} Nxg3
{[%clk 00:01:40]} {[%emt 00:00:31]} 25. fxg3 {[%clk 00:06:20]} {[%emt
00:00:01]} Nd5 {[%clk 00:00:45]} {[%emt 00:01:25]} 26. Nc4 {[%clk 00:05:07]}
{[%emt 00:01:43]} Qa6 {[%clk 00:00:43]} {[%emt 00:00:32]} 27. Ne5 {[%clk
00:05:10]} {[%emt 00:00:27]} Qb6 {[%clk 00:00:46]} {[%emt 00:00:28]} 28. Qh5
{[%clk 00:04:45]} {[%emt 00:00:54]} Rf8 {[%clk 00:00:41]} {[%emt 00:00:34]} 29.
Ng4 {[%clk 00:03:19]} {[%emt 00:01:56]} Kh7 {[%clk 00:00:50]} {[%emt 00:00:22]}
30. Bc2+ {[%clk 00:02:54]} {[%emt 00:00:55]} f5 {[%clk 00:01:15]} {[%emt
00:00:05]} 31. Ne5 {[%clk 00:03:04]} {[%emt 00:00:20]} Rf6 {[%clk 00:00:41]}
{[%emt 00:01:04]} 32. Bb1 {[%clk 00:02:02]} {[%emt 00:01:32]} Qd8 {[%clk
00:00:44]} {[%emt 00:00:27]} 33. Nf7 {[%clk 00:02:07]} {[%emt 00:00:24]} Qf8
{[%clk 00:00:41]} {[%emt 00:00:33]} 34. Nxg5+ {[%clk 00:02:23]} {[%emt
00:00:14]} Kg8 {[%clk 00:01:02]} {[%emt 00:00:09]} 35. Nf3 {[%clk 00:02:10]}
{[%emt 00:00:43]} Bd7 {[%clk 00:01:17]} {[%emt 00:00:16]} 36. Ne5 {[%clk
00:01:20]} {[%emt 00:01:19]} Bxb5 {[%clk 00:01:19]} {[%emt 00:00:27]} 37. axb5
{[%clk 00:01:49]} {[%emt 00:00:02]} Qb4 {[%clk 00:01:41]} {[%emt 00:00:08]} 38.
Nd7 {[%clk 00:01:48]} {[%emt 00:00:32]} Rf7 {[%clk 00:01:55]} {[%emt 00:00:15]}
39. Nc5 {[%clk 00:01:48]} {[%emt 00:00:30]} Qxd4 {[%clk 00:00:40]} {[%emt
00:01:45]} 40. Nxe6 {[%clk 00:02:08]} {[%emt 00:00:10]} Qxb2 {[%clk 00:00:57]}
{[%emt 00:00:14]} 41. Bxf5 {[%clk 00:01:22]} {[%emt 00:01:15]} Qf6 {[%clk
00:00:39]} {[%emt 00:00:48]} 42. Bg4 {[%clk 00:01:09]} {[%emt 00:00:43]} Qb2
{[%clk 00:00:41]} {[%emt 00:00:28]} 43. Qxd5 {[%clk 00:01:23]} {[%emt
00:00:15]} Kh8 {[%clk 00:00:37]} {[%emt 00:00:34]} 44. Nf4 {[%clk 00:01:35]}
{[%emt 00:00:17]} 1-0